bitfinex-derivatives/quotes_ETHF0:USTF0_20210403
["timestamp","ask_amount","ask_price","bid_price","bid_amount"]
[1617484919857,68.5948,2057.0,2056.5,2.90695]
[1617484920158,66.0754,2057.0,2056.5,2.90695]
[1617484920758,2.0,2058.1,2056.5,2.90695]
[1617484920958,2.0,2057.9,2056.5,2.90695]
[1617484921458,2.0,2057.9,2057.0,2.90695]
[1617484923359,2.90695,2057.1,2057.0,2.90695]
[1617484926461,72.4763,2057.8,2057.0,2.90695]
[1617484927363,72.4763,2057.8,2057.5,2.90695]
[1617484927963,2.0,2058.1,2057.5,2.90695]
[1617484928163,2.0,2058.7,2057.5,2.90695]
[1617484929464,2.90695,2057.6,2057.5,2.90695]
[1617484933271,2.0,2058.8,2057.5,2.90695]
[1617484933470,2.0,2058.8,2058.0,2.90695]
[1617484934270,2.0,2058.9,2058.0,2.90695]
[1617484935474,73.8105,2059.0,2058.3,2.90695]
[1617484935875,42.9254,2059.5,2058.3,2.90695]
[1617484936176,44.9254,2059.5,2058.3,2.90695]
[1617484937582,2.90695,2058.4,2058.3,2.90695]
[1617484939181,12.9254,2059.5,2058.3,2.90695]
[1617484939682,12.9254,2059.5,2058.9,2.90695]
[1617484940284,13.1576,2060.0,2058.9,2.90695]
[1617484941284,30.0,2060.6,2058.9,2.90695]
[1617484941484,30.0,2060.6,2059.3,2.90695]
[1617484943487,2.90695,2059.4,2059.3,2.90695]
[1617484957205,2.90695,2059.4,2059.3,3.86755]
[1617484957405,16.571,2060.3,2059.3,3.86755]
[1617484957606,16.90695,2060.3,2060.2,2.90695]
[1617484958306,16.90695,2060.3,2059.9,1.898]
[1617484959707,16.90695,2060.3,2060.2,2.90695]
[1617484962612,14.0,2060.3,2059.9,1.898]
[1617484963017,14.0,2060.3,2059.3,1.7644]
[1617484963217,14.0,2060.3,2058.6,6.9089927]
[1617484963218,14.0,2060.3,2058.6,2.0]
[1617484963820,14.0,2060.3,2060.2,2.90695]
[1617484965121,14.0,2060.3,2059.8,1.8494]
[1617484965322,14.0,2060.3,2059.3,2.4164]
[1617484965821,14.0,2060.3,2059.7,2.90695]
[1617484967727,2.90695,2059.8,2059.7,2.90695]
[1617484986053,2.90695,2059.8,2058.3,4.83259254]
[1617484986454,2.90695,2059.8,2058.2,4.83941968]
[1617484986753,2.90695,2059.8,2058.1,4.84183718]
[1617484987053,4.90695,2059.8,2058.1,4.84183718]
[1617484987456,4.90695,2059.8,2058.0,6.7034304]
[1617484987752,34.90695,2059.8,2058.0,6.7034304]
[1617484987952,34.90695,2059.8,2058.0,4.8429304]
[1617484988153,32.0,2059.8,2058.8,2.90695]
[1617484989056,47.0,2059.8,2058.8,2.90695]
[1617484990058,2.90695,2058.9,2058.8,2.90695]
[1617484990558,2.90695,2058.9,2058.8,3.15651346]
[1617484992460,2.90695,2058.9,2058.8,2.90695]
[1617484997564,2.90695,2058.9,2058.8,3.15665705]
[1617484998065,2.90695,2058.9,2058.8,2.90695]
[1617484999365,2.90695,2058.9,2058.8,3.15665717]
[1617484999665,2.90695,2058.9,2058.8,2.90695]
[1617484999967,2.90695,2058.9,2058.8,3.15718562]
[1617485012879,2.90695,2058.9,2058.8,0.25023562]
[1617485013180,2.90695,2058.9,2058.7,0.25018072]
[1617485013580,2.90695,2058.9,2058.4,4.8872901]
[1617485013783,2.90695,2058.9,2058.2,5.97335457]
[1617485013784,2.90695,2058.9,2058.2,4.88764754]
[1617485013982,2.89895,2058.9,2058.2,4.88764754]
[1617485014484,2.89895,2058.9,2058.3,0.25023798]
[1617485014783,1.5439,2059.3,2058.3,0.25023798]
[1617485015183,1.5439,2059.3,2058.2,0.25024769]
[1617485015383,1.5439,2059.3,2058.4,0.2502453]
[1617485015784,1.5439,2059.3,2058.2,0.25024788]
[1617485016684,2.90695,2058.3,2058.2,0.25024788]
[1617485018588,2.90695,2058.3,2058.0,0.25031164]
[1617485019088,2.90695,2058.3,2058.2,5.98739106]
[1617485019488,2.90695,2058.3,2058.1,5.98296364]
[1617485020388,2.90695,2058.3,2058.2,4.88542902]
[1617485020688,2.90695,2058.3,2058.0,5.97107992]
[1617485020689,2.90695,2057.8,2057.7,4.87542133]
[1617485020988,4.55875,2057.8,2057.7,4.87542133]
[1617485022691,34.55875,2057.8,2057.7,4.87542133]
[1617485022991,34.55875,2057.8,2057.6,4.87090666]
[1617485023491,34.55875,2057.8,2057.4,5.95080984]
[1617485023492,34.55875,2057.8,2057.5,4.87484769]
[1617485023691,2.0,2057.7,2057.5,4.52274769]
[1617485023894,30.0,2057.6,2057.2,5.96409781]
[1617485024192,30.0,2057.6,2057.0,5.96888768]
[1617485024392,30.0,2057.6,2056.8,5.97323154]
[1617485024793,2.90695,2056.9,2056.8,5.97323154]
[1617485025293,2.90695,2056.9,2056.7,5.9767079]
[1617485025492,32.90695,2056.9,2056.7,5.9767079]
[1617485026096,32.90695,2056.9,2056.6,5.97801258]
[1617485026696,32.90695,2056.9,2056.5,5.9787134]
[1617485027098,32.90695,2056.9,2056.4,5.97542611]
[1617485027596,32.90695,2056.9,2056.0,7.06186723]
[1617485027796,32.90695,2056.9,2055.8,9.96755559]
[1617485028198,32.90695,2056.9,2055.8,2.90695]
[1617485028397,32.90695,2056.9,2055.9,0.24966919]
[1617485028898,2.90695,2056.0,2055.9,0.24966919]
[1617485030004,2.90695,2056.0,2055.8,2.90695]
[1617485030602,2.90695,2056.0,2055.6,7.05694979]
[1617485030902,2.90695,2056.0,2055.9,0.24969976]
[1617485031102,2.90695,2056.0,2055.7,0.24971928]
[1617485031303,2.90695,2056.0,2055.6,7.05694979]
[1617485031502,2.90695,2056.0,2055.3,2.90695]
[1617485032706,2.90695,2055.4,2054.4,0.9681]
[1617485033808,2.90695,2055.4,2054.6,4.8773911]
[1617485034807,1.7611,2055.8,2054.8,2.90695]
[1617485036707,2.90695,2054.9,2054.8,2.90695]
[1617485036909,5.00165,2054.9,2054.8,2.90695]
[1617485039711,5.00165,2054.9,2054.4,0.9681]
[1617485040512,5.00165,2054.9,2054.3,4.86774995]
[1617485040713,2.0947,2054.9,2054.6,2.90695]
[1617485041414,1.7611,2055.8,2054.6,2.90695]
[1617485041614,30.0,2056.1,2054.6,2.90695]
[1617485042215,30.0,2055.9,2054.1,4.88171058]
[1617485042414,30.0,2055.9,2053.8,4.88562829]
[1617485042715,32.5043,2055.9,2054.4,2.90695]
[1617485044818,2.90695,2054.5,2054.4,2.90695]
[1617485046521,78.7257,2054.8,2054.4,2.90695]
[1617485046722,78.7257,2054.8,2053.3,0.9875]
[1617485046723,78.7257,2054.8,2054.7,2.90695]
[1617485048826,2.90695,2054.8,2054.7,2.90695]
[1617485066857,64.7489,2055.6,2054.7,2.90695]
[1617485067056,2.90695,2055.2,2054.7,2.90695]
[1617485069157,2.90695,2055.2,2053.9,1.8299]
[1617485069158,2.90695,2055.2,2055.1,2.90695]
[1617485070063,32.0,2056.6,2055.1,2.90695]
[1617485071061,32.0,2056.6,2055.8,2.90695]
[1617485071461,68.2491,2056.9,2055.8,2.90695]
[1617485072963,68.2491,2056.9,2056.2,2.90695]
[1617485075067,2.90695,2056.3,2056.2,2.90695]
[1617485075470,68.2491,2056.9,2056.2,2.90695]
[1617485077069,68.2491,2056.9,2056.7,2.90695]
[1617485078271,2.0,2057.7,2056.7,2.90695]
[1617485078472,13.4139,2057.8,2056.7,2.90695]
[1617485078672,75.3077,2057.9,2056.7,2.90695]
[1617485079172,75.3077,2057.9,2056.5,2.2827]
[1617485079173,75.3077,2057.9,2057.2,2.90695]
[1617485081173,2.90695,2057.3,2057.2,2.90695]
[1617485086878,75.3077,2057.9,2057.2,2.90695]
[1617485087079,75.3077,2057.9,2057.6,2.90695]
[1617485089182,2.90695,2057.7,2057.6,2.90695]
[1617485094385,75.3077,2057.9,2057.6,2.90695]
[1617485099592,75.3077,2057.9,2056.6,2.0]
[1617485100093,75.3077,2057.9,2057.8,2.90695]
[1617485100699,75.3077,2057.9,2056.6,2.0]
[1617485102096,75.3077,2057.9,2057.8,2.90695]
[1617485104599,75.3077,2057.9,2056.4,0.9809]
[1617485104799,76.9366,2057.9,2056.4,0.9809]
[1617485105998,76.9366,2057.9,2056.1,2.0]
[1617485105999,106.9366,2057.9,2056.1,2.0]
[1617485106200,106.9366,2057.9,2056.9,2.90695]
[1617485107000,108.9366,2057.9,2056.9,2.90695]
[1617485108000,108.9366,2057.9,2055.7,2.0]
[1617485108301,33.6289,2057.9,2056.3,2.90695]
[1617485110203,4.88355,2056.4,2056.3,2.90695]
[1617485110802,4.88355,2056.4,2055.3,4.9508384]
[1617485111702,4.88355,2056.4,2055.2,4.95040845]
[1617485112302,1.9766,2056.4,2055.5,2.90695]
[1617485114206,2.90695,2055.6,2055.5,2.90695]
[1617485116610,2.90695,2055.6,2054.5,9.1376692]
[1617485116611,2.90695,2055.6,2055.2,4.94190582]
[1617485117112,2.90695,2055.6,2055.1,4.94495799]
[1617485117511,2.90695,2055.6,2055.0,4.9463701]
[1617485118412,5.00515,2055.1,2055.0,4.9463701]
[1617485118611,5.00515,2055.1,2054.9,4.95584443]
[1617485119516,5.00515,2055.1,2054.8,4.96395902]
[1617485120617,5.00515,2055.1,2054.7,4.96403504]
[1617485121018,5.00515,2055.1,2054.5,4.96295111]
[1617485121723,5.00515,2055.1,2054.4,7.8717746]
[1617485122321,2.0982,2055.1,2054.8,2.90695]
[1617485122521,78.4513,2055.8,2054.8,2.90695]
[1617485124523,2.90695,2054.9,2054.8,2.90695]
[1617485135237,5.01465,2054.9,2054.8,2.90695]
[1617485146554,2.90695,2054.9,2054.8,2.90695]
[1617485153159,76.5463,2055.8,2054.8,2.90695]
[1617485154760,76.5463,2055.8,2055.5,2.90695]
[1617485156764,2.90695,2055.6,2055.5,2.90695]
[1617485166879,2.90695,2055.6,2054.6,4.94743367]
[1617485167281,2.90695,2055.6,2054.7,0.25191142]
[1617485168981,4.48455,2054.8,2054.7,0.25191142]
[1617485169181,4.48455,2054.8,2054.6,0.25196994]
[1617485169883,4.48455,2054.8,2054.5,0.2519893]
[1617485170383,4.48455,2054.8,2054.4,5.23141992]
[1617485170585,4.48455,2054.8,2054.6,0.25200623]
[1617485170883,4.48455,2054.8,2054.5,0.25202647]
[1617485171284,4.48455,2054.8,2054.4,0.25202933]
[1617485172885,2.90695,2054.5,2054.4,0.25202933]
[1617485181801,32.90695,2054.5,2054.2,0.25251647]
[1617485182202,32.90695,2054.5,2054.1,0.2525392]
[1617485182401,32.90695,2054.5,2054.3,0.25254996]
[1617485182901,32.90695,2054.5,2054.1,5.00511536]
[1617485182902,32.90695,2054.5,2054.2,0.25255095]
[1617485183101,32.90695,2054.5,2054.4,7.176e-05]
[1617485183303,32.90695,2054.5,2053.5,10.13656107]
[1617485183304,32.90695,2054.5,2053.5,9.03098839]
[1617485183706,32.90695,2054.5,2053.6,0.24104839]
[1617485185105,4.60885,2053.7,2053.6,0.24104839]
[1617485185405,4.60885,2053.7,2053.4,0.24116319]
[1617485185709,4.60885,2053.7,2053.2,0.23566169]
[1617485186414,4.60885,2053.7,2053.0,6.13657541]
[1617485186615,4.60885,2053.7,2052.5,6.1195652]
[1617485187211,1.7019,2053.7,2052.8,2.90695]
[1617485188915,2.90695,2052.9,2052.8,2.90695]
[1617485189113,4.55685,2052.9,2052.8,2.90695]
[1617485192321,34.55685,2052.9,2052.0,6.13072306]
[1617485193022,4.88555,2052.1,2051.9,2.90695]
[1617485193425,4.88555,2052.1,2051.9,7.93376237]
[1617485194127,4.88555,2052.1,2051.9,2.90695]
[1617485201435,4.88555,2052.1,2051.2,5.01643265]
[1617485202939,34.88555,2052.1,2051.2,5.01643265]
[1617485203138,31.9786,2052.1,2051.4,2.90695]
[1617485204642,31.9786,2052.1,2051.4,3.87545]
[1617485204842,31.9786,2052.1,2051.4,2.90695]
[1617485205243,4.83565,2051.5,2051.4,2.90695]
[1617485207746,34.83565,2051.5,2050.9,5.02664935]
[1617485208347,34.83565,2051.5,2050.8,5.03791528]
[1617485208548,34.83565,2051.5,2050.0,5.0198379]
[1617485208948,34.83565,2051.5,2049.8,5.02175991]
[1617485209249,31.9287,2051.5,2050.8,2.90695]
[1617485209850,31.9287,2051.5,2049.8,5.02175991]
[1617485210749,0.9633,2051.9,2049.8,5.02175991]
[1617485210949,2.1415,2051.5,2049.7,5.01528187]
[1617485211150,30.0,2051.4,2049.7,5.01528187]
[1617485211350,30.0,2051.4,2050.2,2.90695]
[1617485213353,2.90695,2050.3,2050.2,2.90695]
[1617485231972,2.90695,2050.3,2050.2,3.88635]
[1617485232172,2.0,2051.9,2050.2,3.88635]
[1617485232775,5.098,2057.4,2050.2,3.88635]
[1617485232976,32.0,2052.4,2050.2,3.88635]
[1617485233774,32.0,2052.4,2050.7,2.90695]
[1617485234475,2.0,2052.4,2050.7,2.90695]
[1617485235975,2.90695,2050.8,2050.7,2.90695]
[1617485246487,2.90695,2050.8,2050.7,3.14471678]
[1617485252503,2.90695,2050.8,2050.7,0.23776678]
[1617485253204,2.90695,2050.8,2049.9,0.23800483]
[1617485253503,2.90695,2050.8,2050.7,0.23800762]
[1617485253805,2.90695,2050.8,2050.3,5.06106206]
[1617485254403,2.90695,2050.8,2050.4,0.23804816]
[1617485254904,2.90695,2050.8,2050.3,0.23806228]
[1617485255304,2.90695,2050.8,2050.2,0.23806695]
[1617485255504,2.90695,2050.8,2050.4,0.23806597]
[1617485255908,2.90695,2050.5,2050.2,0.2380634]
[1617485257612,2.90695,2050.5,2050.1,0.23919259]
[1617485258012,4.99615,2050.2,2050.1,0.23919259]
[1617485269534,17.99615,2050.2,2050.1,0.23919259]
[1617485282763,17.99615,2050.2,2050.1,7.60996483]
[1617485283763,17.99615,2050.2,2050.1,0.23919259]
[1617485285965,17.99615,2050.2,2049.9,0.23894948]
[1617485286165,17.99615,2050.2,2050.1,0.23894856]
[1617485286567,17.99615,2050.2,2049.9,0.23895082]
[1617485288770,17.99615,2050.2,2049.8,0.23898841]
[1617485289070,17.99615,2050.2,2049.8,8.76064315]
[1617485289270,17.99615,2050.2,2049.8,0.23898841]
[1617485289470,17.99615,2050.2,2049.9,0.23899869]
[1617485289670,17.99615,2050.2,2050.1,7.3858325]
[1617485289970,17.99615,2050.2,2049.4,2.90695]
[1617485289971,17.99615,2050.2,2049.8,7.61593533]
[1617485290272,2.90695,2049.9,2049.5,8.51177893]
[1617485290670,2.90695,2049.9,2049.6,0.23868631]
[1617485293875,2.90695,2049.9,2049.8,7.37709766]
[1617485294475,2.90695,2049.9,2049.8,7.61579908]
[1617485295676,2.90695,2049.9,2049.8,0.23870142]
[1617485296177,2.90695,2049.9,2049.8,3.14579163]
[1617485296975,13.0,2050.2,2049.8,3.14579163]
[1617485297377,13.0,2050.2,2049.9,8.74861214]
[1617485297679,13.0,2050.2,2050.0,0.23876552]
[1617485298279,15.90695,2050.2,2050.1,11.42292732]
[1617485298681,15.90695,2050.2,2050.1,11.66167759]
[1617485300783,15.90695,2050.2,2050.1,13.79387759]
[1617485301384,15.90695,2050.2,2050.1,5.27790027]
[1617485302887,13.0,2050.2,2050.1,5.27790027]
[1617485304390,13.0,2050.2,2050.1,14.93068567]
[1617485306493,12.6528,2050.2,2050.1,14.93068567]
[1617485306794,12.5114,2050.2,2050.1,14.93068567]
[1617485307193,8.5217,2050.2,2050.1,14.93068567]
[1617485307394,8.5217,2050.2,2050.1,7.27790027]
[1617485308394,2.90695,2051.2,2050.1,7.27790027]
[1617485308599,2.18145,2051.2,2050.1,7.27790027]
[1617485308795,2.11335,2051.2,2050.8,8.51588252]
[1617485309095,67.0907,2051.8,2050.8,11.04328252]
[1617485309394,67.0907,2051.8,2050.9,8.75461441]
[1617485309695,67.0907,2051.8,2051.7,6.24426957]
[1617485310298,69.99765,2051.8,2051.7,6.24426957]
[1617485311600,69.99765,2051.8,2051.6,2.90695]
[1617485312101,2.90695,2051.8,2051.6,2.90695]
[1617485312500,2.90695,2051.8,2051.7,6.24334523]
[1617485313501,2.90695,2051.8,2051.6,2.90695]
[1617485321310,2.0,2052.8,2051.6,10.28531341]
[1617485322010,2.0,2052.8,2052.2,5.10802444]
[1617485322410,2.90695,2052.3,2052.2,5.10802444]
[1617485323313,2.90695,2052.3,2052.1,5.10572668]
[1617485325717,2.90695,2052.3,2052.2,5.1057046]
[1617485326614,2.90695,2052.3,2052.1,6.2400631]
[1617485326913,2.90695,2052.3,2052.0,9.14689085]
[1617485327318,2.90695,2052.3,2052.1,6.23991493]
[1617485330919,2.90695,2052.3,2052.2,6.23931838]
[1617485331620,2.90695,2052.3,2052.0,4.73385]
[1617485332019,2.90695,2052.3,2052.0,12.10685606]
[1617485332521,68.8468,2052.9,2052.0,13.07445606]
[1617485332919,68.8468,2052.9,2052.1,7.37212817]
[1617485333119,67.8688,2052.9,2052.1,7.37212817]
[1617485333323,67.8688,2052.9,2052.7,8.68403406]
[1617485333520,67.8688,2052.9,2052.8,6.23701683]
[1617485334021,2.0,2053.8,2052.7,2.4469]
[1617485334423,2.0,2053.8,2053.5,2.90695]
[1617485334624,2.0,2053.8,2053.2,1.9227]
[1617485335125,2.0,2054.4,2053.2,1.9227]
[1617485336227,4.571,2054.3,2053.2,1.9227]
[1617485336527,2.90695,2053.3,2053.2,1.9227]
[1617485336727,2.90695,2053.3,2053.1,2.90695]
[1617485346244,2.0,2054.1,2053.1,4.52035]
[1617485346643,2.0,2054.1,2053.6,2.90695]
[1617485347344,2.0,2054.1,2053.6,4.99405]
[1617485347644,2.0,2054.2,2053.6,4.99405]
[1617485348544,2.90695,2053.7,2053.6,4.99405]
[1617485350144,2.0,2054.2,2053.6,4.99405]
[1617485350344,42.789,2055.9,2053.6,4.99405]
[1617485350548,2.0,2055.1,2054.4,2.90695]
[1617485350746,2.0,2055.8,2054.4,2.90695]
[1617485350946,2.0,2055.1,2054.4,2.90695]
[1617485351846,2.0,2055.7,2054.4,2.90695]
[1617485352546,2.90695,2054.5,2054.4,2.90695]
[1617485353749,2.0,2055.7,2054.4,2.90695]
[1617485353950,2.0,2055.6,2054.4,2.90695]
[1617485354251,2.9664,2056.2,2054.4,2.90695]
[1617485354652,2.9664,2056.2,2054.9,4.91405]
[1617485355756,2.0,2056.2,2054.9,4.91405]
[1617485356557,2.0,2056.2,2055.4,2.90695]
[1617485356758,2.0,2056.2,2055.4,5.36385]
[1617485356958,2.0,2056.3,2055.4,5.36385]
[1617485358759,2.90695,2055.5,2055.4,5.36385]
[1617485361465,12.9144,2056.8,2055.4,5.36385]
[1617485361666,67.5809,2057.1,2055.4,5.36385]
[1617485362867,2.90695,2055.5,2055.4,5.36385]
[1617485369285,2.90695,2055.5,2055.4,2.90695]
[1617485371387,2.90695,2055.5,2054.4,0.9597]
[1617485372890,1.9423,2055.6,2054.7,2.90695]
[1617485374892,1.9423,2055.6,2054.4,0.9597]
[1617485374893,1.9423,2055.6,2055.0,2.90695]
[1617485375792,32.351,2056.1,2055.0,2.90695]
[1617485376998,2.90695,2055.1,2055.0,2.90695]
[1617485378997,2.90695,2055.1,2054.6,2.90695]
[1617485381000,2.90695,2054.7,2054.6,2.90695]
[1617485381202,4.83025,2054.7,2054.6,2.90695]
[1617485384306,4.83025,2054.7,2052.7,2.0]
[1617485385005,1.9233,2054.7,2054.2,2.90695]
[1617485386209,2.3095,2055.5,2054.2,2.90695]
[1617485386409,34.571,2055.9,2054.2,2.90695]
[1617485386810,14.0,2054.7,2054.2,2.90695]
[1617485387213,2.90695,2054.3,2054.2,2.90695]
[1617485407936,2.90695,2054.3,2053.5,5.06871342]
[1617485408236,2.90695,2054.3,2053.6,0.23699377]
[1617485408636,2.90695,2054.3,2053.5,0.23700922]
[1617485409439,1.7335,2054.6,2053.7,2.90695]
[1617485410038,1.7335,2054.6,2053.2,5.06914815]
[1617485410337,1.7335,2054.6,2053.3,0.237038]
[1617485411137,14.0,2054.7,2053.3,0.237038]
[1617485411338,2.90695,2053.4,2053.3,2.90695]
[1617485411838,2.90695,2053.4,2053.3,3.14445004]
[1617485412238,2.90695,2053.4,2053.3,0.23750004]
[1617485412738,2.90695,2053.4,2053.1,0.23754135]
[1617485412938,2.90695,2053.4,2053.0,0.23753793]
[1617485413438,2.90695,2053.1,2053.0,7.59338073]
[1617485414343,2.90695,2053.1,2053.0,0.23753793]
[1617485414541,4.58955,2053.1,2053.0,0.23753793]
[1617485414842,4.58955,2053.1,2052.7,7.35884785]
[1617485415044,4.58955,2053.1,2053.0,6.22689699]
[1617485415442,4.58955,2053.1,2052.9,6.22730104]
[1617485415843,4.58955,2053.1,2053.0,5.09531278]
[1617485416144,4.58955,2053.1,2052.9,5.09544819]
[1617485417146,6.58955,2053.1,2052.9,5.09544819]
[1617485417549,36.58955,2053.1,2052.8,5.09590337]
[1617485417850,36.58955,2053.1,2052.7,5.09596407]
[1617485418047,2.0,2052.9,2052.7,5.09596407]
[1617485418248,32.0,2052.9,2052.7,2.23036407]
[1617485418649,32.0,2052.9,2052.5,6.22840053]
[1617485418948,32.0,2052.9,2052.4,6.22897454]
[1617485419147,32.0,2052.9,2052.3,6.22918175]
[1617485419349,2.90695,2052.4,2052.3,6.22918175]
[1617485419548,4.84935,2052.4,2052.3,6.22918175]
[1617485420149,4.84935,2052.4,2052.2,6.2294083]
[1617485422647,4.84935,2052.4,2051.8,7.36202799]
[1617485422648,4.84935,2052.4,2052.1,6.22957054]
[1617485423048,6.84935,2052.4,2052.1,6.22957054]
[1617485423548,6.84935,2052.4,2051.7,7.36221973]
[1617485423752,36.84935,2052.4,2051.7,7.36221973]
[1617485424150,36.84935,2052.4,2051.1,7.36397985]
[1617485424550,36.84935,2052.4,2051.2,0.23789336]
[1617485424851,36.84935,2052.4,2051.4,7.37832127]
[1617485425453,2.90695,2051.5,2051.4,7.37832127]
[1617485425653,4.74455,2051.5,2051.4,7.37832127]
[1617485425852,4.74455,2051.5,2050.8,2.90695]
[1617485427455,2.90695,2050.9,2050.8,2.90695]
[1617485427754,4.68055,2050.9,2050.8,2.90695]
[1617485428654,4.68055,2050.9,2049.5,7.33243644]
[1617485428954,4.68055,2050.9,2049.0,2.0]
[1617485428955,4.68055,2050.9,2050.1,5.07637627]
[1617485429453,2.90695,2050.5,2050.3,2.90695]
[1617485434160,2.90695,2050.5,2050.3,7.98321047]
[1617485435160,2.90695,2050.5,2050.3,5.07626047]
[1617485436062,2.90695,2050.5,2050.2,5.07626557]
[1617485436865,2.90695,2050.5,2050.0,2.90695]
[1617485437566,2.90695,2050.5,2050.4,2.90695]
[1617485443872,2.90695,2050.5,2049.2,5.05438817]
[1617485444374,2.90695,2050.5,2049.1,5.05438259]
[1617485445575,2.1433,2050.8,2049.9,2.90695]
[1617485445776,0.9828,2051.4,2049.9,2.90695]
[1617485445975,1.8376,2051.5,2049.9,2.90695]
[1617485446176,95.8464,2051.6,2049.9,2.90695]
[1617485447677,2.90695,2050.0,2049.9,2.90695]
[1617485447877,5.29415,2050.0,2049.9,2.90695]
[1617485449778,5.29415,2050.0,2049.4,2.90695]
[1617485451680,2.90695,2049.5,2049.4,2.90695]
[1617485451879,4.78305,2049.5,2049.4,2.90695]
[1617485453181,4.78305,2049.5,2048.1,2.0]
[1617485453781,1.8761,2049.5,2047.8,2.0]
[1617485454982,1.8761,2049.5,2047.6,5.04769023]
[1617485455186,1.8761,2049.5,2047.5,5.04789557]
[1617485455783,1.8761,2049.5,2048.6,2.90695]
[1617485457285,69.6849,2049.6,2048.6,2.90695]
[1617485457688,2.90695,2048.7,2048.6,2.90695]
[1617485459893,2.90695,2048.7,2047.1,0.9757]
[1617485461594,32.90695,2048.7,2046.2,2.9798]
[1617485461795,30.0,2048.7,2048.2,2.90695]
[1617485462695,30.0,2048.7,2046.2,2.9798]
[1617485462894,69.6837,2048.2,2046.2,2.9798]
[1617485463194,72.0026,2048.2,2046.2,2.9798]
[1617485463795,72.0026,2048.2,2047.4,2.90695]
[1617485465695,2.90695,2047.5,2047.4,2.90695]
[1617485465995,4.83575,2047.5,2047.4,2.90695]
[1617485471500,4.83575,2047.5,2047.4,3.87745]
[1617485471900,4.83575,2047.5,2047.4,2.90695]
[1617485472102,4.83575,2047.5,2046.2,0.9798]
[1617485472400,76.0475,2047.1,2046.2,0.9798]
[1617485473807,2.90695,2046.7,2046.6,2.90695]
[1617485474007,2.90695,2046.7,2045.3,0.9897]
[1617485474207,4.75215,2046.7,2045.5,5.0370981]
[1617485474608,4.75215,2046.7,2045.6,0.23816181]
[1617485475108,4.75215,2046.7,2045.5,0.23836289]
[1617485475409,34.75215,2046.7,2045.5,0.23836289]
[1617485475608,59.3789,2045.6,2045.5,0.23836289]
[1617485475810,64.30995,2045.6,2045.5,2.90695]
[1617485476208,64.30995,2045.6,2045.5,0.23845711]
[1617485476509,64.30995,2045.6,2044.9,5.04144772]
[1617485476709,64.30995,2045.6,2044.6,5.04168267]
[1617485477510,64.30995,2045.6,2044.4,5.04237974]
[1617485477910,61.403,2045.6,2045.1,2.90695]
[1617485480014,2.90695,2045.2,2045.1,2.90695]
[1617485482117,2.90695,2045.2,2044.0,0.9858]
[1617485482416,2.90695,2045.2,2044.2,2.0]
[1617485483420,2.90695,2045.2,2044.2,2.9894]
[1617485483921,2.0241,2045.6,2045.0,2.90695]
[1617485484123,2.0,2046.9,2045.0,2.90695]
[1617485484528,68.2863,2046.8,2045.0,2.90695]
[1617485484728,70.4455,2046.8,2045.0,2.90695]
[1617485486036,2.90695,2045.1,2045.0,2.90695]
[1617485486736,1.6461,2046.3,2045.0,2.90695]
[1617485488036,1.6461,2046.3,2045.3,2.90695]
[1617485489939,2.90695,2045.9,2045.7,2.90695]
[1617485492245,1.6461,2046.3,2045.7,2.90695]
[1617485492443,2.1592,2046.8,2045.7,2.90695]
[1617485492644,62.4437,2047.7,2045.7,2.90695]
[1617485494146,62.4437,2047.7,2045.5,0.9864]
[1617485494147,62.4437,2047.7,2046.3,2.90695]
[1617485496147,2.90695,2046.4,2046.3,2.90695]
[1617485497050,1.8252,2046.9,2046.3,2.90695]
[1617485498153,62.4437,2047.7,2046.8,2.90695]
[1617485500055,62.4437,2047.7,2047.1,2.90695]
[1617485501660,62.4437,2047.7,2047.1,3.88285]
[1617485502058,62.4437,2047.7,2047.1,2.90695]
[1617485504059,62.4437,2047.7,2047.6,2.90695]
[1617485510566,61.4947,2047.7,2047.6,2.90695]
[1617485511169,61.4271,2047.7,2047.6,2.90695]
[1617485511668,5.3383,2047.7,2047.6,2.90695]
[1617485512069,30.0,2050.3,2049.4,2.90695]
[1617485512270,13.6978,2050.2,2049.4,2.90695]
[1617485512470,13.6978,2050.2,2048.6,1.6498]
[1617485512670,13.6978,2050.2,2048.8,77.1572]
[1617485514074,13.6978,2050.2,2049.8,2.90695]
[1617485515373,13.6978,2050.2,2048.6,2.6259]
[1617485515675,13.6978,2050.2,2050.0,67.6334]
[1617485515874,13.6978,2050.2,2049.2,2.3302]
[1617485516174,2.90695,2050.1,2049.8,2.90695]
[1617485516673,13.6978,2050.2,2049.8,2.90695]
[1617485516877,13.6978,2050.2,2049.8,5.35985]
[1617485518074,13.6978,2050.2,2050.1,2.90695]
[1617485519376,12.7977,2051.1,2050.2,80.5838]
[1617485520174,12.7977,2051.1,2050.8,2.90695]
[1617485522180,12.0,2051.0,2050.8,2.90695]
[1617485523775,10.0669,2051.0,2050.8,2.90695]
[1617485524975,9.2049,2051.0,2050.8,2.90695]
[1617485525176,9.1039,2051.0,2050.8,2.90695]
[1617485525376,13.3844,2051.9,2050.8,2.90695]
[1617485525578,12.6691,2051.9,2050.8,2.90695]
[1617485526176,12.6691,2051.9,2051.8,2.90695]
[1617485526380,2.90695,2052.2,2051.8,4.53685]
[1617485526577,13.8441,2052.4,2051.8,4.53685]
[1617485526980,11.897,2052.4,2051.8,4.53685]
[1617485527484,11.897,2052.4,2051.8,5.52455]
[1617485528182,11.897,2052.4,2052.3,2.90695]
[1617485528584,11.897,2052.4,2052.3,4.51925]
[1617485535492,10.6747,2052.4,2052.3,4.51925]
[1617485537292,5.6798,2052.4,2052.3,4.51925]
[1617485538994,2.90695,2052.9,2052.3,4.51925]